Cogmind - Beta 13 @@@ ROGUE MODE // 2024.04.12 @ 18:16:52 Player: Edstelm Result: Destroyed by Y-54 Guardian with Gatling Laser Performance ------------- Evolutions (3) 1500 Regions Visited (6) 1200 Robots Destroyed (31) 155 Value Destroyed (969) 969 Prototype IDs (1) 20 Alien Tech Used (0) 0 Bonus (68) 68 TOTAL SCORE: 3912 Bonus ------- High Alert Combat Kills 68 Cogmind --------- Core Integrity 0/700 Matter 103/300 Energy 87/100 System Corruption 3% Temperature Cool (6) Movement Core (50) Location -7/Storage Parts ------- > --- POWER (2) -------- (None) > --- PROPULSION (3) --- (None) > --- UTILITY (5) ------ System Shield System Shield > --- WEAPON (3) ------- (None) > --- INVENTORY (5) ---- Faulty Cooled VTOL Module Peak State ------------ > --- POWER ------------ Light Angular Momentum Engine > --- PROPULSION ------- Titanium Leg Titanium Leg Titanium Leg > --- UTILITY ---------- Structural Scanner ECM Suite Hardened Medium Armor Plating Hardlight Generator System Shield > --- WEAPON ----------- Rocket Launcher Rocket Launcher > --- INVENTORY -------- Titanium Leg Sensor Array Improved Light Armor Plating Ion Cannon Heavy Assault Rifle [Rating: 30] Favorites ----------- Power Light Angular Momentum Engine Engine Light Angular Momentum Engine Power Core Light Nuclear Core Propulsion Titanium Leg Treads Improved Treads Leg Titanium Leg Wheel Wheel Flight Unit Cooled VTOL Module Utility System Shield Device ECM Suite Storage Medium Storage Unit Processor Signal Interpreter Hackware System Shield Protection Hardened Medium Armor Plating Weapon Ion Cannon Energy Gun EM Pulse Gun Energy Cannon Ion Cannon Ballistic Gun Heavy Assault Rifle Launcher Rocket Launcher Impact Weapon Heavy Flail Build | -11 -10 -10 -9 -8 -7 -7 ------- Run | Yrd Mat Min Mat Mat Fac Sto Slots Evolved 6 | . . . 2 2 2 . Power 1 | . . . . . 1 . Propulsion 1 | . . . 1 . . . Utility 3 | . . . 1 2 . . Weapon 1 | . . . . . 1 . Parts Attached 55 | 5 4 4 16 15 5 6 Power 7 | 1 . 2 2 1 . 1 Engine 6 | 1 . 2 2 . . 1 Core 1 | . . . . 1 . . Reactor . | . . . . . . . Propulsion 13 | 2 . . 7 1 1 2 Treads 2 | . . . . . . 2 Leg 8 | . . . 7 1 . . Wheel 2 | 2 . . . . . . Hover . | . . . . . . . Flight 1 | . . . . . 1 . Utility 22 | . 4 . 6 8 3 1 Device 10 | . 1 . 3 5 1 . Storage 2 | . 2 . . . . . Processor 2 | . 1 . . . 1 . Hackware 2 | . . . 1 . 1 . Protection 6 | . . . 2 3 . 1 Artifact . | . . . . . . . Weapon 13 | 2 . 2 1 5 1 2 Energy Gun 2 | 1 . . . . . 1 Energy Cannon 3 | . . 1 . . 1 1 Ballistic Gun 4 | 1 . . 1 2 . . Ballistic Cannon . | . . . . . . . Launcher 3 | . . . . 3 . . Special Weapon . | . . . . . . . Impact Weapon 1 | . . 1 . . . . Slashing Weapon . | . . . . . . . Piercing Weapon . | . . . . . . . Special Melee Weapon . | . . . . . . . Unidentified Prototypes 1 | . . . . . 1 . Parts Lost 21 | . . 1 2 12 . 6 Power 4 | . . 1 . 2 . 1 Propulsion 7 | . . . 1 4 . 2 Utility 7 | . . . 1 4 . 2 Weapon 3 | . . . . 2 . 1 Highest Loss Streak 6 | . . 1 1 6 . 6 To Critical Strikes . | . . . . . . . Average Slot Usage (%) 85 | . 86 99 96 90 36 42 Engine 9 | . 14 14 11 6 . 3 Leg 14 | . . . 25 25 . . Wheel 9 | . 28 28 4 . . . Device 9 | . 2 . 4 23 8 5 Storage 6 | . 6 14 11 . . . Processor 6 | . 7 14 8 . 3 . Hackware 6 | . . . 6 9 14 15 Protection 3 | . . . 2 8 . 3 Energy Gun 1 | . 14 2 . . . 1 Energy Cannon 6 | . . 11 11 1 1 1 Ballistic Gun 8 | . 14 14 11 5 . . Launcher 2 | . . . . 8 . . Naked Turns . | . . . . . . . Heaviest Build 33 | 7 17 23 29 33 11 32 Greatest Support 51 | 20 20 20 51 51 3 46 Greatest Overweight (x) 10 | . . 1 2 6 3 10 Average Overweight (x) . | . . . . . . . Largest Inventory Capacity 10 | 5 10 10 10 10 5 5 Average Capacity 7 | 5 6 10 10 5 5 5 Most Carried 10 | 5 7 10 10 8 5 5 Average Carried 6 | 2 4 9 9 4 3 2 Final Capacity 10 | 5 10 10 10 5 5 5 Final Carried 10 | 4 7 10 8 3 5 1 Class Distribution -------------------- 58% | Mutant 18% | Infiltrator-Mutant 13% | Hacker-Mutant 8% | Scavenger-Mutant Dominant Class ---------------- Mutant | -10/Materials Mutant | -10/Mines Mutant | -9/Materials Infiltrator-Mutant | -8/Materials Hacker-Mutant | -7/Factory Hacker-Mutant | -7/Storage Resources | -11 -10 -10 -9 -8 -7 -7 ----------- Run | Yrd Mat Min Mat Mat Fac Sto Matter Collected 1096 | 259 23 186 258 295 . 75 Remotely . | . . . . . . . Salvage Created 777 | 50 23 26 320 283 . 75 Parts 50 | 2 3 4 19 20 . 2 Haulers Intercepted . | . . . . . . . Recyclers Shooed . | . . . . . . . Parts Field Recycled . | . . . . . . . Retrieved Matter . | . . . . . . . Parts Self-Destructed . | . . . . . . . Prevented . | . . . . . . . Kills | -11 -10 -10 -9 -8 -7 -7 ------- Run | Yrd Mat Min Mat Mat Fac Sto Combat Hostiles Destroyed 27 | 1 . 2 9 14 . 1 Guns 9 | 1 . 2 4 1 . 1 Cannons 9 | . . . 4 5 . . AOE 9 | . . . 1 8 . . Classes Destroyed 6 | 1 1 1 2 1 . . Builder 2 | . . . . 2 . . Watcher 2 | . 1 . . 1 . . Swarmer 10 | . . 2 2 6 . . Grunt 11 | 1 . . 3 7 . . Brawler 2 | . . . 1 . . 1 Sentry 4 | . . . 3 1 . . Best Kill Streak 6 | 1 1 2 2 6 . 1 Combat Bots Only 6 | 1 . 2 2 6 . 1 Max Kills in Single Turn 2 | 1 1 1 1 2 . 1 Gunslinging . | . . . . . . . Exploded 2 | . . . 1 2 . . Melee . | . . . . . . . Uniques/NPCs Destroyed . | . . . . . . . Combat | -11 -10 -10 -9 -8 -7 -7 -------- Run | Yrd Mat Min Mat Mat Fac Sto Hostile Shots Fired 477 | 4 5 13 62 189 2 202 Missed 145 | 2 1 3 20 76 . 43 Damage Taken 4456 | 23 48 84 627 1801 31 1842 Core 1330 | 11 . 6 175 434 31 673 Absorbed by Shields . | . . . . . . . Core Remaining (%) 66 | 95 . 93 56 21 . . Volleys Fired 78 | 3 4 4 28 33 . 6 Largest 2 | 2 2 2 2 2 . 2 Hottest 115 | 60 60 80 83 83 . 115 Shots Fired 145 | 6 8 8 56 55 . 12 Gun 78 | 6 8 7 28 23 . 6 Cannon 43 | . . 1 28 8 . 6 Launcher 24 | . . . . 24 . . Special . | . . . . . . . Kinetic 62 | 3 4 4 28 23 . . Thermal 43 | . . 1 28 8 . 6 Explosive 24 | . . . . 24 . . Electromagnetic 16 | 3 4 3 . . . 6 Robot Hit Streak 7 | 2 1 1 6 7 . 5 Robot Miss Streak 7 | 1 5 3 5 7 . 1 Penetration Max . | . . . . . . . Secondary Targets . | . . . . . . . Shots Hit Robots 65 | 4 1 2 27 24 . 7 Core Hits 59 | 2 1 2 12 40 . 2 Critical Kills . | . . . . . . . Critical Parts Destroyed . | . . . . . . . Critical Strikes . | . . . . . . . Melee Attacks . | . . . . . . . Impact . | . . . . . . . Slashing . | . . . . . . . Piercing . | . . . . . . . Sneak Attacks . | . . . . . . . Combat Hostiles . | . . . . . . . Follow-up Attacks . | . . . . . . . Damage Inflicted 2691 | 60 15 26 740 1726 . 124 Guns 508 | 60 15 26 223 148 . 36 Cannons 507 | . . . 303 116 . 88 Explosions 1676 | . . . 214 1462 . . Melee . | . . . . . . . Ramming . | . . . . . . . Kinetic 447 | 35 15 26 223 148 . . Thermal 507 | . . . 303 116 . 88 Explosive 1676 | . . . 214 1462 . . Electromagnetic 61 | 25 . . . . . 36 Impact . | . . . . . . . Slashing . | . . . . . . . Piercing . | . . . . . . . Highest Corruption 3 | . . . . . 3 3 Average Corruption 3 | . . . . . 3 3 Corruption Purged . | . . . . . . . Corruption Blocked . | . . . . . . . Effects 3 | . . . . . 1 2 Matter Fused 1 | . . . . . 1 . Energy Discharges 1 | . . . . . . 1 Data Loss (minor) 1 | . . . . . . 1 Overload Shots . | . . . . . . . Overflow Damage 24 | . . . . 24 . . Projectiles . | . . . . . . . Explosions 24 | . . . . 24 . . Melee . | . . . . . . . Knockbacks . | . . . . . . . Impact . | . . . . . . . Kinetic . | . . . . . . . Secondary . | . . . . . . . Self-Inflicted Damage 263 | . . . 84 179 . . Shots 9 | . . . 1 8 . . Rammed . | . . . . . . . Targets Rammed . | . . . . . . . Kicked . | . . . . . . . Crushed . | . . . . . . . Highest Temperature 561 | 12 20 18 189 192 . 561 Average Temperature 91 | 9 20 12 56 58 . 268 Received Heat Transfer 1557 | 12 27 12 165 639 18 684 Effects 3 | . . . . . . 3 Matter Decay 2 | . . . . . . 2 Short Circuit 1 | . . . . . . 1 Siege Activations . | . . . . . . . Robots Corrupted . | . . . . . . . Combat Hostiles . | . . . . . . . Parts Fried . | . . . . . . . Impact Corruptions . | . . . . . . . Robots Melted . | . . . . . . . Combat Hostiles . | . . . . . . . Parts Melted 1 | . . . . 1 . . Heat Transferred 814 | . . . 481 185 . 148 Parts Sabotaged . | . . . . . . . Parts Stolen . | . . . . . . . Parts Stripped . | . . . . . . . Power Chain Reactions . | . . . . . . . Alert | -11 -10 -10 -9 -8 -7 -7 ------- Run | Yrd Mat Min Mat Mat Fac Sto Peak Influence 631 | 20 112 123 359 631 169 135 Initial 169 | . 13 43 47 75 169 76 Average 183 | 2 48 119 161 339 169 91 Maximum Alert Level 2 | . . . 1 2 . . Low Security (%) 72 | 100 100 100 82 16 100 100 Level 1 14 | . . . 17 35 . . Level 2 13 | . . . . 48 . . Level 3 . | . . . . . . . Level 4 . | . . . . . . . Level 5 . | . . . . . . . High Security . | . . . . . . . Max Security . | . . . . . . . Squads Dispatched 13 | . . 1 1 4 2 5 Investigation 9 | . . 1 . 1 2 5 Extermination . | . . . . . . . Reinforcement 4 | . . . 1 3 . . Assault . | . . . . . . . Garrison . | . . . . . . . Intercept . | . . . . . . . Searches Triggered . | . . . . . . . Construction Impeded 1 | . . . . 1 . . Haulers Reinforced . | . . . . . . . Active Scanning Responses . | . . . . . . . Cargo Convoy Interrupts . | . . . . . . . Stealth | -11 -10 -10 -9 -8 -7 -7 --------- Run | Yrd Mat Min Mat Mat Fac Sto Distress Signals 4 | . 1 . . 2 . 1 Communications Jammed . | . . . . . . . Distress Signals . | . . . . . . . Times Spotted 88 | 1 10 6 14 32 2 23 Peak Tracking Total 20 | 1 8 3 4 10 2 20 Tactical Retreats 4 | . . 1 1 2 . . Traps | -11 -10 -10 -9 -8 -7 -7 ------- Run | Yrd Mat Min Mat Mat Fac Sto Traps Triggered 1 | . . . . 1 . . Indirectly . | . . . . . . . Trap Hack Attempts . | . . . . . . . Triggered . | . . . . . . . Disarmed . | . . . . . . . Reprogrammed . | . . . . . . . Reused . | . . . . . . . Traps Extracted . | . . . . . . . Installed . | . . . . . . . Triggered 1 | . . 1 . . . . Machines | -11 -10 -10 -9 -8 -7 -7 ---------- Run | Yrd Mat Min Mat Mat Fac Sto Machines Disabled 8 | . 2 . 2 4 . . Max in Single Turn 2 | . 1 . 1 2 . . Machines Repaired . | . . . . . . . Machines Dismantled . | . . . . . . . Machines Sabotaged . | . . . . . . . Overloaded Fab Kills . | . . . . . . . Hacking | -11 -10 -10 -9 -8 -7 -7 --------- Run | Yrd Mat Min Mat Mat Fac Sto Machines Accessed 12 | . 1 1 2 1 2 5 Terminals 9 | . 1 . . 1 2 5 Fabricators . | . . . . . . . Repair Stations 1 | . . . 1 . . . Recycling Units 1 | . . . 1 . . . Scanalyzers . | . . . . . . . Garrison Access . | . . . . . . . Total Hacks 56 | . 4 1 5 15 9 22 Successful 26 | . 3 1 5 9 2 6 Failed 27 | . 1 . . 4 7 15 Catastrophic 5 | . . . . . 1 4 Database Lockouts 3 | . . . . 2 . 1 Manual 20 | . . . 1 1 4 14 Terminals 50 | . 4 . . 15 9 22 Fabricators . | . . . . . . . Repair Stations 3 | . . . 3 . . . Recycling Units 2 | . . . 2 . . . Scanalyzers . | . . . . . . . Garrison Access . | . . . . . . . Terminal Hacks 21 | . 3 1 . 9 2 6 Record 18 | . 3 . . 8 2 5 Open Door 1 | . . 1 . . . . Zone Layout 2 | . . . . 1 . 1 Fabricator Hacks . | . . . . . . . Repair Station Hacks 3 | . . . 3 . . . Scan Component 2 | . . . 2 . . . Repair 1 | . . . 1 . . . Recycling Unit Hacks 2 | . . . 2 . . . Process 1 | . . . 1 . . . Report Inventory 1 | . . . 1 . . . Scanalyzer . | . . . . . . . Garrison Access Hacks . | . . . . . . . Unauthorized Hacks . | . . . . . . . Terminals . | . . . . . . . Fabricators . | . . . . . . . Repair Stations . | . . . . . . . Recycling Units . | . . . . . . . Scanalyzers . | . . . . . . . Garrison Access . | . . . . . . . Data Cores Recovered . | . . . . . . . Used . | . . . . . . . Hacking Detections 10 | . 1 . 1 1 2 5 Full Trace Events 9 | . 1 . . 1 2 5 Feedback Events . | . . . . . . . Feedback Blocked 1 | . . . . . 1 . Robot Schematics Acquired . | . . . . . . . Robots Built . | . . . . . . . Authchips . | . . . . . . . Time . | . . . . . . . Total Robot Build Rating . | . . . . . . . Part Schematics Acquired . | . . . . . . . Parts Built . | . . . . . . . Authchips . | . . . . . . . Time . | . . . . . . . Total Part Build Rating . | . . . . . . . Parts Repaired . | . . . . . . . Time 32 | . . . 32 . . . Parts Recycled . | . . . . . . . Recycled Matter 10 | . . . 10 . . . Retrieved Matter . | . . . . . . . Retrieved Components . | . . . . . . . Parts Scanalyzed . | . . . . . . . Part Schematics Acquired . | . . . . . . . Parts Damaged . | . . . . . . . Bothacking | -11 -10 -10 -9 -8 -7 -7 ------------ Run | Yrd Mat Min Mat Mat Fac Sto Used RIF Installer . | . . . . . . . Robots Hacked . | . . . . . . . Non-combat . | . . . . . . . Combat . | . . . . . . . Robot Hacks Applied . | . . . . . . . Relay Couplers Released . | . . . . . . . Fabnet Peak Effective % . | . . . . . . . Robots Rewired . | . . . . . . . Allies Hacked . | . . . . . . . Hacks Repelled . | . . . . . . . Allies | -11 -10 -10 -9 -8 -7 -7 -------- Run | Yrd Mat Min Mat Mat Fac Sto Total Allies . | . . . . . . . Largest Group . | . . . . . . . Highest-Rated Group . | . . . . . . . Highest-Rated Ally . | . . . . . . . Total Orders . | . . . . . . . Ally Attacks . | . . . . . . . Total Damage . | . . . . . . . Kills . | . . . . . . . Allies Corrupted . | . . . . . . . Allies Melted . | . . . . . . . Intel | -11 -10 -10 -9 -8 -7 -7 ------- Run | Yrd Mat Min Mat Mat Fac Sto Robot Analysis Total . | . . . . . . . Derelict Logs Recovered 1 | . . 1 . . . . Drone Launches . | . . . . . . . Drone Recoveries . | . . . . . . . Exploration | -11 -10 -10 -9 -8 -7 -7 ------------- Run | Yrd Mat Min Mat Mat Fac Sto Turns Passed 1830 | 91 140 389 444 514 163 89 Spaces Moved 1510 | 90 144 394 273 310 225 74 Core 323 | 18 . . . 22 225 58 Treads 16 | . . . . . . 16 Legs 491 | . . . 203 288 . . Wheels 680 | 72 144 394 70 . . . Hover . | . . . . . . . Flight . | . . . . . . . Fastest Speed 50 | 50 80 80 80 50 50 50 Average Speed 96 | 74 80 91 118 125 65 82 Slowest Speed 550 | 80 80 95 260 350 200 550 Overloaded Moves . | . . . . . . . Propulsion Burnouts . | . . . . . . . Robots Hopped . | . . . . . . . Cave-ins Triggered . | . . . . . . . Exploration Rate (%) 30 | 9 37 76 30 31 8 19 Regions Visited 6 Branch Regions 2 Pre-discovered Areas . | . . . . . . . Known Exits Taken 2 | . 1 1 . . . . Unknown Exits Taken 4 | 1 . . 1 1 1 . Scrap Searched 2 | . . 2 . . . . Spaces Dug 15 | . . . . 15 . . Terrain Destroyed 197 | . . . 72 125 . . Melee . | . . . . . . . Projectile 6 | . . . 6 . . . AOE 191 | . . . 66 125 . . Terrain Rammed . | . . . . . . . Walls Destroyed . | . . . . . . . Machines Disabled . | . . . . . . . Actions | -11 -10 -10 -9 -8 -7 -7 --------- Run | Yrd Mat Min Mat Mat Fac Sto Total 1738 | 108 162 415 340 380 243 90 Wait 5 | . . . . 5 . . Move 1504 | 89 143 393 272 309 224 74 Hop . | . . . . . . . Pick Up 57 | 10 7 8 13 9 8 2 Fast Attach . | . . . . . . . Attach 39 | 5 4 4 9 7 5 5 Detach 8 | . 2 2 2 . 2 . Swap 16 | . . . 7 8 . 1 Drop 31 | 1 2 4 9 9 4 2 Fire 78 | 3 4 4 28 33 . 6 Melee . | . . . . . . . Ram . | . . . . . . . Kick . | . . . . . . . Crush . | . . . . . . . Escape Stasis . | . . . . . . . Rewire . | . . . . . . . Trap . | . . . . . . . Miscellaneous . | . . . . . . . Route ------- -11/Scrapyard -10/Materials -10/Mines (discovered 2 exits: *Mat x2) -9/Materials -8/Materials -7/Factory -7/Storage History --------- Turn | Location | Event 2 | -11/Scrapyard | Met Revision 17 67 | -11/Scrapyard | Discovered new exit (range 8) 92 | -11/Scrapyard | Entered Materials 143 | -10/Materials | Discovered new exit (range 5) 169 | -10/Materials | Identified exit to Mines 232 | -10/Materials | Entered Mines 234 | -10/Mines | Met a Derelict bent on vengeance 290 | -10/Mines | Met a Derelict shopkeep closing up shop 303 | -10/Mines | Build established: Mutant 333 | -10/Mines | Discovered new exit (range 5) 336 | -10/Mines | Identified exit to Materials 405 | -10/Mines | Received a Rocket Launcher from a helpful Derelict 602 | -10/Mines | Learned Materials trap positions 607 | -10/Mines | Discovered exit to Materials (range 7) 621 | -10/Mines | Entered Materials 621 | -9/Materials | Evolved 2 slots: Propulsion x1, Utility x1 622 | -9/Materials | Loaded intel: 21 trap records 1055 | -9/Materials | Discovered new exit (range 3) 1065 | -9/Materials | Entered another Materials area 1065 | -8/Materials | Evolved 2 slots: Utility x2 1374 | -8/Materials | Build established: Infiltrator-Mutant 1476 | -8/Materials | Lost 5 parts (2p1n2u) 1549 | -8/Materials | Central database locked down 1549 | -8/Materials | Central database locked down 1565 | -8/Materials | Core integrity fell below 50% 1577 | -8/Materials | Discovered new exit (range 3) 1579 | -8/Materials | Entered Factory 1579 | -7/Factory | Evolved 2 slots: Power x1, Weapon x1 1599 | -7/Factory | Lost 6 parts (3n2u1w) 1722 | -7/Factory | Discovered new exit (range 7) 1742 | -7/Factory | Entered Storage 1814 | -7/Storage | Central database locked down 1816 | -7/Storage | Core integrity fell below 50% 1826 | -7/Storage | Core integrity fell below 20% 1831 | -7/Storage | Destroyed by Y-54 Guardian with Gatling Laser Last Messages --------------- incredibly accurate and the goal is to combine this technology with projectiles effective at extreme ranges so that demolishers can support a confrontation from a safe distance by targeting hostiles with assistance from spotters. Integrating the systems does require more space, though attacking from outside a target's field of view means there is little need for protective components. ALERT: Suspicious activity at Terminal S004. Dispatching Investigation squad. [Achievement: Hunted] The achievement interface (ESC then open Records) offers an effective way to explore all of your earned achievements as well as seek out new goals for future runs. A-02 Transporter destroyed. Slug penetrates Wall. Slug penetrates Terminal. [Achievement: First Step to Greatness] Map ----- +----------------------------------------------------+ | ?????????????????????????????????# ###????????? | | ?????????????????????????????????# T#????????? | | ?????????????????????????????????# ""#????????? | | ?????????????????????????????????+ ###????????? | | ?????????????????????????????????# #??????????? | | ?????????????????????????????????# #??????????? | | ?????????????????## ########## #??????????? | | ?????????????????## ########## #??????????? | | ?????????????? ####+############ ##########?? | | ???????????????? + ^ ##########?? | | ?????????????????# # # ##?? | | ?????????????????# """ # " ##?? | | ?????????????????+ "T" # ##?? | | ?????????????????####### " " ! + " ##?? | | ??????????????########## ! !== ##T# ##?? | | ?????????????# # = === #### ##?? | | ????????????????""" + [% ##########?? | | ??????????????? """ # = ] ##########?? | | ??????????????? """ ###""T""### # #?? | | ?????????????G #?#"""""### # #?? | | ?????????????"" """ #?#######"" # #?? | | ??????????????# """ [ #???????#T # """#?? | | ????????????????"""[=[ #???????### # """#?? | | ????????????????? !=%=*########??# / """#?? | | ????################/#### g #### # """#?? | | ????# g =h Y@T"gg o# """#?? | | ????# gg"" hg # #?? | | ????# a g YY ##### ####?? | | ????##################### h #### #######????? | | ????????????????????????#######??# ## ########? | | ????????????????????############## # #? | | ????????????????????# # # #? | | ????????????????????# """ """ # # """" #? | | ????????????????????# """ """ / + """" #? | | ????????????????????# """ """ # # """" #? | | ????????????????????# # # """" #? | | ?????????????????################# + #? | | ????????????????????????????????? #??????????? | | ?????????????????????????????????##+##??????????? | | ????????????????????????????????????????????????? | | ????????????????????????????????????????????????? | | ????????????????????????????????????????????????? | | ????????????????????????????????????????????????? | | ????????????????????????????????????????????????? | | ????????????????????????????????????????????????? | | ????????????????????????????????????????????????? | | ????????????????????????????????????????????????? | | ????????????????????????????????????????????????? | | ????????????????????????????????????????????????? | | ????????????????????????????????????????????????? | +----------------------------------------------------+ Best States ------------- Heat Dissipation 34 Energy Generation 18 Energy Capacity 290 Matter Stores 304 Matter Capacity 400 Sight Range 16 Robot Scan Range 14 Terrain Scan Density 10 ECM Strength 1 Armor Coverage 600 Evasion (%) 55 Recoil Reduction 2 Energy Filtering 30 Salvage Targeting 2 Defensive Hacking 20 Item Schematics ----------------- None Robot Schematics ------------------ None Fabricated ------------ Nothing Alien Tech Used ----------------- None Achievements -------------- First Step to Greatness Hunted Let's See Who's Tougher Librarian Made in Tau Ceti IV One Hack Too Far Oops Party Time Risk Taker Storm Trooper Uninvited Guest Challenges ------------ None Game ------ Seed ElectronDecoyStorage Manual? 0 Play Time 01:47:34 Cumulative 1.7 hours Start 2024.04.12 @ 16:11:31 End 2024.04.12 @ 18:16:52 Sessions 1 Manual Loads 0 Difficulty Rogue Special Mode None Game No. 1 Rogue 1 Adventurer 0 Explorer 0 Win Type - Total 0 Types 0/0/0/0/0/0/0/0/0 Lore% 2 Gallery% 3 Achievement% 4 Wizard Run 0 Options --------- Layout 1 ASCII 0 Keyboard 0 Movement Mouse Keybinds 0 Fullscreen 2 Font 48/Smallcaps Map View 50x35 Zoom Use 0% Tactical HUD 0 Map Filters NONE Filters NONE Steam 1 RUN: f2506f6d-5103-4dd6-95f6-51d40da2e684